bitfinex/quotes_SOLUSD_20241022
["timestamp","ask_amount","ask_price","bid_price","bid_amount"]
[1729588409936,20.0,165.78,165.71,8.94972875]
[1729588410137,6.0309,165.82,165.73,8.94972875]
[1729588410327,20.0,165.8,165.73,8.94972875]
[1729588410528,4.50504409,165.79,165.73,8.94972875]
[1729588410732,20.0,165.8,165.73,8.94972875]
[1729588410930,4.50525462,165.79,165.73,8.94972875]
[1729588411129,20.0,165.8,165.73,8.94972875]
[1729588411436,4.50581754,165.79,165.73,8.94972875]
[1729588411740,20.0,165.8,165.73,8.94972875]
[1729588411938,4.50586933,165.79,165.73,8.94972875]
[1729588412244,20.0,165.8,165.73,8.94972875]
[1729588412536,4.50645562,165.79,165.73,8.94972875]
[1729588412838,20.0,165.8,165.73,8.94972875]
[1729588413041,4.50628547,165.79,165.73,8.94972875]
[1729588413229,20.0,165.8,165.73,8.94972875]
[1729588413433,4.50629813,165.79,165.73,8.94972875]
[1729588413733,20.0,165.8,165.73,8.94972875]
[1729588413928,4.50629927,165.79,165.73,8.94972875]
[1729588414131,26.0306,165.83,165.75,8.94972875]
[1729588414329,4.50608142,165.82,165.75,8.94972875]
[1729588414549,4.50608142,165.82,165.68,23.776884]
[1729588414550,4.50608142,165.81,165.68,23.776884]
[1729588414720,24.50608142,165.81,165.73,8.94972875]
[1729588415043,24.50608142,165.8,165.73,8.94972875]
[1729588415229,4.50608142,165.79,165.75,8.94972875]
[1729588415622,20.0,165.81,165.75,8.94972875]
[1729588415823,4.50650656,165.8,165.75,8.94972875]
[1729588416017,4.50650656,165.79,165.75,8.94972875]
[1729588416223,20.0,165.81,165.75,8.94972875]
[1729588416426,4.50658261,165.8,165.75,8.94972875]
[1729588416631,4.50658261,165.79,165.75,8.94972875]
[1729588416848,20.0,165.81,165.75,8.94972875]
[1729588417046,4.50613326,165.8,165.68,23.776884]
[1729588417339,20.0,165.83,165.68,23.776884]
[1729588417340,20.0,165.78,165.72,8.94972875]
[1729588418349,26.0321,165.78,165.72,8.94972875]
[1729588420250,26.0321,165.78,165.7,8.94972875]
[1729588420448,4.50450438,165.77,165.7,8.94972875]
[1729588420743,20.0,165.75,165.67,15.5733]
[1729588420942,6.0342,165.73,165.65,8.94972875]
[1729588421934,20.0,165.72,165.65,8.94972875]
[1729588422129,6.0343,165.72,165.65,8.94972875]
[1729588424051,20.0,165.73,165.65,8.94972875]
[1729588424239,20.0,165.73,165.67,8.94972875]
[1729588424829,20.0,165.74,165.67,8.94972875]
[1729588426551,20.0,165.72,165.65,8.94972875]
[1729588428149,6.0343,165.72,165.65,8.94972875]
[1729588428356,20.0,165.71,165.65,8.94972875]
[1729588436263,20.0,165.69,165.59,15.6565]
[1729588436458,6.036,165.68,165.6,8.94972875]
[1729588436754,20.0,165.65,165.6,8.94972875]
[1729588437970,23.776884,165.69,165.6,8.94972875]
[1729588438169,20.0,165.68,165.6,8.94972875]
[1729588438663,20.0,165.66,165.6,8.94972875]
[1729588440763,20.0,165.68,165.62,8.94972875]
[1729588441278,20.0,165.66,165.6,8.94972875]
[1729588441451,6.0371,165.64,165.54,16.2332]
[1729588441651,20.0,165.6,165.54,16.2332]
[1729588441859,20.0,165.58,165.5,25.31112875]
[1729588442064,6.0398,165.57,165.5,25.31112875]
[1729588442374,20.0,165.56,165.5,25.31112875]
[1729588442968,20.0,165.57,165.5,25.31112875]
[1729588444484,20.0,165.59,165.52,8.94972875]
[1729588445074,29.814784,165.62,165.54,8.94972875]
[1729588445267,21.3067,165.63,165.56,8.94972875]
[1729588445871,27.3442,165.63,165.56,8.94972875]
[1729588446261,20.0,165.62,165.56,8.94972875]
[1729588446773,20.0,165.62,165.51,23.776884]
[1729588446978,20.0,165.62,165.56,8.94972875]
[1729588448560,20.0,165.62,165.58,8.94972875]
[1729588448870,20.0,165.64,165.58,8.94972875]
[1729588449455,6.0371,165.65,165.58,8.94972875]
[1729588450860,20.0,165.64,165.58,8.94972875]
[1729588451178,20.0,165.63,165.57,8.94972875]
[1729588452575,20.0,165.63,165.53,15.0352]
[1729588452786,20.0,165.63,165.57,8.94972875]
[1729588453089,20.0,165.64,165.59,8.94972875]
[1729588453767,43.776884,165.66,165.61,8.94972875]
[1729588453962,20.0,165.66,165.63,8.94972875]
[1729588455185,6.31181303,165.67,165.63,8.94972875]
[1729588456387,20.0,165.66,165.6,29.3257101]
[1729588457866,6.31181303,165.67,165.6,29.3257101]
[1729588458068,6.31181303,165.67,165.62,14.0137101]
[1729588458287,6.31181303,165.67,165.64,14.0137101]
[1729588458583,6.1138,165.71,165.64,14.0137101]
[1729588458970,6.30904833,165.73,165.64,14.0137101]
[1729588458971,6.0342,165.72,165.64,14.0137101]
[1729588459783,6.30904833,165.73,165.64,14.0137101]
[1729588459994,20.0,165.72,165.64,14.0137101]
[1729588460899,26.0343,165.72,165.64,14.0137101]
[1729588461581,20.0,165.68,165.6,29.3257101]
[1729588461786,20.0,165.67,165.6,29.3257101]
[1729588462283,20.0,165.7,165.6,29.3257101]
[1729588462284,20.0,165.71,165.65,14.0137101]
[1729588462488,20.0,165.72,165.65,14.0137101]
[1729588462783,26.0342,165.72,165.65,14.0137101]
[1729588463198,6.0348,165.71,165.65,14.0137101]
[1729588465694,6.036,165.68,165.6,15.312]
[1729588465866,20.0,165.65,165.55,22.0447]
[1729588466067,20.0,165.65,165.57,14.0137101]
[1729588466686,6.0372,165.64,165.57,14.0137101]
[1729588466992,20.0,165.65,165.57,14.0137101]
[1729588467204,26.0369,165.65,165.57,14.0137101]
[1729588469402,23.776884,165.63,165.55,15.8847]
[1729588469704,20.0,165.62,165.55,15.8847]
[1729588470001,6.0383,165.61,165.53,14.0137101]
[1729588470193,6.0383,165.61,165.51,35.6928101]
[1729588470394,23.776884,165.61,165.51,35.6928101]
[1729588470715,20.0,165.59,165.51,35.6928101]
[1729588471081,26.039,165.59,165.51,29.2081101]
[1729588471795,20.0,165.59,165.51,29.2081101]
[1729588474079,23.776884,165.61,165.51,29.2081101]
[1729588474080,20.0,165.6,165.53,14.0137101]
[1729588480292,20.0,165.6,165.54,8.97798629]
[1729588484701,6.039,165.59,165.51,15.1944]
[1729588484888,20.0,165.58,165.52,8.97798629]
[1729588485726,20.0,165.57,165.52,8.97798629]
[1729588487619,51.61787757,165.61,165.54,8.97798629]
[1729588487806,20.0,165.6,165.54,8.97798629]
[1729588488895,20.0,165.6,165.51,15.1944]
[1729588488896,20.0,165.6,165.56,8.97798629]
[1729588489296,20.0,165.62,165.56,8.97798629]
[1729588492930,20.0,165.63,165.56,8.97798629]
[1729588493314,20.0,165.63,165.6,8.97798629]
[1729588493605,6.0361,165.67,165.6,8.97798629]
[1729588493807,12.34726946,165.67,165.6,8.97798629]
[1729588494832,20.0,165.66,165.6,8.97798629]
[1729588501341,26.0367,165.66,165.6,8.97798629]
[1729588501911,29.813784,165.65,165.6,8.97798629]
[1729588502317,6.0372,165.64,165.58,8.97798629]
[1729588503029,6.0372,165.64,165.54,6.0773]
[1729588503030,6.0383,165.61,165.54,8.97798629]
[1729588503417,26.0378,165.63,165.54,8.97798629]
[1729588503719,26.0378,165.63,165.56,8.97798629]
[1729588504633,20.0,165.63,165.56,8.97798629]
[1729588508141,6.31233466,165.64,165.58,8.97798629]
[1729588508341,23.776884,165.66,165.6,8.97798629]
[1729588508734,29.813384,165.66,165.6,8.97798629]
[1729588509743,20.0,165.65,165.58,8.97798629]
[1729588510333,20.0,165.66,165.58,8.97798629]
[1729588510849,20.0,165.66,165.5,6.5183]
[1729588510850,6.036,165.67,165.56,8.97798629]
[1729588511136,20.0,165.62,165.56,8.97798629]
[1729588511334,26.0379,165.62,165.54,8.97798629]
[1729588512743,26.0379,165.62,165.56,8.97798629]
[1729588514140,20.0,165.62,165.56,8.97798629]
[1729588516246,20.0,165.64,165.58,8.97798629]
[1729588516541,26.0372,165.64,165.58,8.97798629]
[1729588518341,24.54109962,165.68,165.53,15.4887]
[1729588518342,6.0361,165.67,165.6,8.97798629]
[1729588518542,4.49744349,165.66,165.6,8.97798629]
[1729588518731,6.31109962,165.68,165.6,8.97798629]
[1729588518928,4.49750285,165.67,165.6,8.97798629]
[1729588519139,4.49750285,165.66,165.6,8.97798629]
[1729588519321,6.31109962,165.68,165.6,8.97798629]
[1729588519522,6.31109962,165.68,165.62,8.97798629]
[1729588519737,22.5852,165.73,165.64,8.97798629]
[1729588519949,22.5852,165.73,165.66,8.97798629]
[1729588519950,6.30951532,165.71,165.66,8.97798629]
[1729588520243,6.0331,165.76,165.7,8.97798629]
[1729588520440,4.49668402,165.75,165.7,8.97798629]
[1729588520631,4.49668402,165.74,165.7,8.97798629]
[1729588520831,6.0329,165.76,165.68,8.97798629]
[1729588521034,10.53032096,165.75,165.68,8.97798629]
[1729588521232,4.49682096,165.74,165.68,8.97798629]
[1729588521631,24.49682096,165.74,165.68,8.97798629]
[1729588521819,20.0,165.74,165.68,8.97798629]
[1729588522330,20.0,165.74,165.66,14.00383093]
[1729588523451,23.776884,165.75,165.66,14.00383093]
[1729588523650,23.776884,165.75,165.64,6.6491]
[1729588523651,20.0,165.76,165.68,14.00383093]
[1729588525422,20.0,165.77,165.68,14.00383093]
[1729588525625,20.0,165.75,165.68,14.00383093]
[1729588527346,20.0,165.75,165.66,14.00383093]
[1729588527552,20.0,165.73,165.66,14.00383093]
[1729588530531,6.0324,165.77,165.66,14.00383093]
[1729588530738,49.809784,165.76,165.66,14.00383093]
[1729588530937,26.0329,165.76,165.66,14.00383093]
[1729588532253,6.0329,165.76,165.66,14.00383093]
[1729588532856,6.0329,165.76,165.68,14.00383093]
[1729588533557,6.30739486,165.75,165.68,14.00383093]
[1729588535960,20.0,165.73,165.66,14.00383093]
[1729588536140,26.0339,165.73,165.66,14.00383093]
[1729588537766,20.0,165.73,165.66,14.00383093]
[1729588537945,20.0,165.75,165.66,14.00383093]
[1729588538138,20.0,165.75,165.68,14.00383093]
[1729588538668,20.0,165.73,165.66,14.00383093]
[1729588539638,20.0,165.73,165.64,6.6491]
[1729588539639,20.0,165.75,165.64,14.00383093]
[1729588539864,20.0,165.71,165.64,14.00383093]
[1729588540069,26.0346,165.71,165.64,14.00383093]
[1729588540946,29.811084,165.72,165.64,14.00383093]
[1729588541160,20.0,165.71,165.64,14.00383093]
[1729588543050,20.0,165.73,165.66,14.00383093]
[1729588543264,12.34046811,165.76,165.68,14.00383093]
[1729588544148,12.34046811,165.76,165.7,14.00383093]
[1729588544348,6.30766811,165.76,165.7,14.00383093]
[1729588544545,6.0325,165.77,165.7,14.00383093]
[1729588545571,6.0321,165.78,165.7,14.00383093]
[1729588546166,6.30659358,165.79,165.72,14.00383093]
[1729588546377,6.031,165.81,165.72,14.00383093]
[1729588546546,6.031,165.81,165.74,14.00383093]
[1729588547350,6.30548014,165.83,165.74,14.00383093]
[1729588547556,6.30548014,165.83,165.78,14.00383093]
[1729588547782,12.3337,165.86,165.78,14.00383093]
[1729588548065,10.50848389,165.85,165.78,14.00383093]
[1729588548267,6.0295,165.85,165.78,14.00383093]
[1729588550849,20.0,165.84,165.78,14.00383093]
[1729588551268,20.0,165.85,165.78,14.00383093]
[1729588551451,6.01826803,165.86,165.78,14.00383093]
[1729588551652,12.04756803,165.86,165.78,14.00383093]
[1729588553178,6.01826803,165.86,165.78,14.00383093]
[1729588553971,6.01826803,165.86,165.8,14.00383093]
[1729588554277,20.0,165.89,165.82,14.00383093]
[1729588554482,6.4345,165.9,165.82,14.00383093]
[1729588554651,6.4345,165.9,165.76,30.36333093]
[1729588554652,6.4996,165.95,165.84,14.00383093]
[1729588554854,10.49763258,165.94,165.84,14.00383093]
[1729588555084,10.49833258,165.93,165.84,14.00383093]
[1729588555379,6.4996,165.95,165.84,14.00383093]
[1729588555554,6.0263,165.94,165.84,14.00383093]
[1729588555974,20.0,165.92,165.84,14.00383093]
[1729588556186,20.0,165.94,165.84,14.00383093]
[1729588556357,20.0,165.91,165.84,14.00383093]
[1729588557983,6.0277,165.9,165.83,15.9223]
[1729588559054,20.0,165.94,165.78,30.01593093]
[1729588559055,20.0,165.89,165.78,30.01593093]
[1729588560469,26.0283,165.89,165.78,30.01593093]
[1729588561779,6.0287,165.88,165.78,30.01593093]
[1729588561978,6.0288,165.87,165.78,30.01593093]
[1729588562783,20.0,165.87,165.78,30.01593093]
[1729588563395,6.0296,165.85,165.78,16.0121]
[1729588563563,20.0,165.84,165.78,16.0121]
[1729588566567,20.0,165.84,165.73,21.7965]
[1729588566788,6.032,165.79,165.73,15.4516]
[1729588567272,6.0313,165.8,165.73,15.4516]
[1729588567692,26.0317,165.79,165.73,15.4516]
[1729588568180,20.0,165.79,165.73,15.4516]
[1729588569983,0.1,165.86,165.76,14.00383093]
[1729588569984,6.0293,165.86,165.76,14.00383093]
[1729588570901,6.0302,165.84,165.74,14.00383093]
[1729588571898,43.776884,165.83,165.73,15.4516]
[1729588572076,50.119784,165.81,165.69,15.0751]
[1729588572284,20.0,165.77,165.65,21.1867]
[1729588572482,6.0341,165.73,165.65,15.0751]
[1729588572883,20.0,165.71,165.65,15.0751]
[1729588573486,23.876884,165.76,165.65,15.0751]
[1729588573799,6.0368,165.65,165.57,15.0751]
[1729588573979,43.776884,165.7,165.57,15.0751]
[1729588574380,6.0368,165.65,165.57,15.0751]
[1729588574572,20.0,165.64,165.55,6.1116]
[1729588575101,26.0374,165.64,165.52,29.07893093]
[1729588575479,20.0,165.64,165.52,37.35812433]
[1729588575679,20.0,165.65,165.54,14.00383093]
[1729588575897,20.0,165.64,165.54,14.00383093]
[1729588576289,20.0,165.64,165.53,8.2791934]
[1729588578703,49.813484,165.66,165.53,8.2791934]
[1729588579906,20.0,165.66,165.55,22.43881207]
[1729588580105,6.0348,165.71,165.58,22.43881207]
[1729588580280,6.0354,165.69,165.58,22.43881207]
[1729588580478,0.1,165.71,165.56,8.2791934]
[1729588580683,6.0373,165.64,165.52,37.51391207]
[1729588581201,6.01124,165.64,165.52,37.51391207]
[1729588581410,20.0,165.63,165.52,45.79310547]
[1729588581578,6.0361,165.67,165.55,22.43881207]
[1729588581778,20.0,165.66,165.55,30.71800547]
[1729588583404,20.0,165.62,165.52,37.51391207]
[1729588584412,20.0,165.63,165.52,37.51391207]
[1729588588112,20.0,165.61,165.52,37.51391207]
[1729588590906,20.0,165.58,165.49,30.71800547]
[1729588591300,20.0,165.56,165.47,15.1142]
[1729588591490,26.0401,165.56,165.47,15.1142]
[1729588591688,20.0,165.54,165.43,28.85401207]
[1729588591908,20.0,165.52,165.43,28.85401207]
[1729588592093,6.5173,165.56,165.43,28.85401207]
[1729588592094,12.5575,165.56,165.43,28.85401207]
[1729588592295,6.5173,165.56,165.46,22.43881207]
[1729588592498,20.0,165.56,165.46,22.43881207]
[1729588592798,20.0,165.59,165.49,22.43881207]
[1729588592986,26.039,165.59,165.49,22.43881207]
[1729588594298,6.0394,165.58,165.49,22.43881207]
[1729588594491,26.0399,165.57,165.49,22.43881207]
[1729588595196,26.0393,165.59,165.49,22.43881207]
[1729588595397,20.0,165.57,165.49,22.43881207]
[1729588596315,26.039,165.59,165.52,22.43881207]
[1729588598010,20.0,165.59,165.52,22.43881207]
[1729588598216,22.7221,165.64,165.55,22.43881207]
[1729588598515,22.7221,165.64,165.56,14.01881301]
[1729588599013,22.7221,165.64,165.54,14.01881301]
[1729588599310,6.0389,165.6,165.54,14.01881301]
[1729588599521,23.776884,165.62,165.52,14.01881301]
[1729588599822,26.0393,165.59,165.52,14.01881301]
[1729588601509,6.0396,165.58,165.52,14.01881301]
[1729588601722,29.817084,165.56,165.52,14.01881301]
[1729588601904,20.0,165.55,165.5,14.01881301]
[1729588602099,20.0,165.58,165.52,14.01881301]
[1729588602300,26.0394,165.58,165.52,14.01881301]
[1729588602902,20.0,165.58,165.52,14.01881301]
[1729588603316,20.0,165.58,165.54,14.01881301]
[1729588603618,20.0,165.59,165.54,14.01881301]
[1729588607216,20.0,165.6,165.54,14.01881301]
[1729588607395,20.0,165.6,165.47,22.877]
[1729588607396,20.0,165.6,165.56,14.01881301]
[1729588608507,6.1192,165.64,165.58,14.01881301]
[1729588608698,20.0,165.63,165.6,14.01881301]
[1729588608897,20.0,165.63,165.58,14.01881301]
[1729588609099,26.0378,165.63,165.56,14.01881301]
[1729588611725,26.0378,165.63,165.58,14.01881301]
[1729588611726,20.0,165.63,165.58,14.01881301]
[1729588611939,15.2034,165.68,165.6,14.01881301]
[1729588611940,6.0363,165.67,165.6,14.01881301]
[1729588612106,15.0861,165.72,165.64,14.01881301]
[1729588612107,22.13,165.72,165.64,14.01881301]
[1729588612307,22.13,165.72,165.6,14.01881301]
[1729588612308,28.1642,165.72,165.66,14.01881301]
[1729588612717,6.1681,165.72,165.66,14.01881301]
[1729588612937,6.0339,165.73,165.68,14.01881301]
[1729588614329,20.0,165.72,165.68,14.01881301]
[1729588615034,6.0339,165.73,165.68,14.01881301]
[1729588615517,6.0346,165.71,165.64,14.01881301]
[1729588616320,20.0,165.7,165.64,14.01881301]
[1729588618321,20.0,165.68,165.62,30.35281301]
[1729588618519,20.0,165.68,165.62,14.01881301]
[1729588619413,20.0,165.67,165.62,14.01881301]
[1729588620948,20.0,165.65,165.58,29.23841301]
[1729588621313,20.0,165.65,165.6,14.01881301]
[1729588621522,15.5002,165.68,165.58,15.2196]
[1729588621523,43.776884,165.68,165.62,14.01881301]
[1729588621733,4.49387814,165.67,165.62,14.01881301]
[1729588621935,20.0,165.68,165.62,14.01881301]
[1729588622323,6.0358,165.68,165.62,14.01881301]
[1729588622642,20.0,165.67,165.6,14.01881301]
[1729588623356,23.776884,165.64,165.56,14.01881301]
[1729588623649,20.0,165.63,165.56,14.01881301]
[1729588623865,23.776884,165.62,165.54,29.75701301]
[1729588624155,20.0,165.61,165.54,29.75701301]
[1729588624382,23.776884,165.6,165.52,14.01881301]
[1729588624528,20.0,165.59,165.52,14.01881301]
[1729588626947,20.0,165.59,165.49,15.7434]
[1729588627149,20.0,165.59,165.51,14.01881301]
[1729588627534,6.1148,165.63,165.49,29.76221301]
[1729588627535,20.0,165.57,165.49,29.76221301]
[1729588628329,26.0397,165.57,165.49,29.76221301]
[1729588628534,29.816984,165.56,165.49,29.76221301]
[1729588628747,26.0405,165.55,165.47,14.01881301]
[1729588628951,29.817684,165.54,165.47,14.01881301]
[1729588629131,43.776884,165.56,165.49,14.01881301]
[1729588631141,49.816984,165.56,165.49,14.01881301]
[1729588631351,49.816984,165.56,165.47,14.01881301]
[1729588631352,43.776884,165.54,165.47,14.01881301]
[1729588631657,43.776884,165.54,165.42,14.01881301]
[1729588631658,59.171584,165.54,165.42,14.01881301]
[1729588631831,6.0434,165.47,165.41,0.6075895]
[1729588632028,77.301584,165.54,165.41,0.6075895]
[1729588632029,6.0445,165.44,165.41,0.6075895]
[1729588632252,23.776884,165.43,165.41,0.6075895]
[1729588632758,23.776884,165.44,165.41,0.6075895]
[1729588634453,20.0,165.43,165.41,0.6075895]
[1729588634654,43.776884,165.42,165.41,0.6075895]
[1729588636562,20.0,165.42,165.41,0.6075895]
[1729588639563,49.822084,165.42,165.41,0.6075895]
[1729588639766,56.461784,165.42,165.41,0.6075895]
[1729588640564,56.561784,165.42,165.41,0.6075895]
[1729588640875,20.0,165.35,165.27,16.1054]
[1729588641052,23.776884,165.34,165.27,16.1054]
[1729588643899,23.776884,165.34,165.25,23.0964835]
[1729588643900,23.776884,165.32,165.25,23.0964835]
[1729588644182,23.776884,165.32,165.25,0.6075895]
[1729588644183,23.776884,165.3,165.25,0.6075895]
[1729588647788,23.776884,165.31,165.25,0.6075895]
[1729588648963,23.776884,165.32,165.25,0.6075895]
[1729588650582,23.776884,165.3,165.25,0.6075895]
[1729588654064,29.826484,165.3,165.25,0.6075895]
[1729588654669,23.776884,165.3,165.25,0.6075895]
[1729588658417,20.0,165.33,165.25,14.68566216]
[1729588658690,20.0,165.33,165.28,14.07807266]
[1729588659581,26.0485,165.33,165.28,14.07807266]
[1729588659762,20.0,165.31,165.28,14.07807266]
[1729588660095,6.3606,165.34,165.28,14.07807266]
[1729588660096,20.0,165.34,165.28,14.07807266]
[1729588660268,6.2984,165.38,165.3,14.07807266]
[1729588660581,6.0475,165.36,165.3,14.07807266]
[1729588661182,6.2984,165.38,165.3,14.07807266]
[1729588661183,6.047,165.37,165.3,14.07807266]
[1729588661575,20.0,165.36,165.3,14.07807266]
[1729588662285,20.0,165.34,165.3,14.07807266]
[1729588663361,23.776884,165.35,165.3,14.07807266]
[1729588663568,6.046,165.4,165.32,14.07807266]
[1729588664471,6.0469,165.38,165.31,15.2391]
[1729588664695,23.876884,165.38,165.27,15.2391]
[1729588664894,6.0481,165.34,165.27,15.2391]
[1729588665084,23.776884,165.33,165.27,15.2391]
[1729588665276,23.776884,165.31,165.27,15.2391]
[1729588665773,23.776884,165.31,165.26,14.07807266]
[1729588667871,20.0,165.27,165.25,0.6075895]
[1729588668090,49.827884,165.26,165.25,0.6075895]
[1729588668291,79.827884,165.26,165.25,0.6075895]
[1729588668689,49.827884,165.26,165.25,0.6075895]
[1729588669165,79.827884,165.26,165.25,0.6075895]
[1729588671003,79.927884,165.26,165.25,0.6075895]
[1729588671182,79.927884,165.26,165.25,8.95e-05]
[1729588671183,96.654384,165.26,165.25,8.95e-05]
[1729588672405,6.054,165.18,165.11,35.65907266]
[1729588673992,6.0543,165.17,165.11,29.16537266]
[1729588674297,29.831584,165.16,165.11,29.16537266]
[1729588674499,29.831584,165.16,165.11,15.0873]
[1729588674803,6.0552,165.15,165.08,14.68566216]
[1729588674983,23.776884,165.13,165.08,14.68566216]
[1729588675483,23.776884,165.15,165.08,14.68566216]
[1729588675703,26.0548,165.16,165.08,14.68566216]
[1729588675909,20.0,165.16,165.1,14.07807266]
[1729588676414,23.776884,165.12,165.05,14.07807266]
[1729588676699,20.0,165.14,165.09,14.07807266]
[1729588678004,6.0551,165.15,165.04,14.07807266]
[1729588678005,43.776884,165.16,165.11,14.07807266]
[1729588679102,49.831884,165.16,165.11,14.07807266]
[1729588681105,23.776884,165.14,165.11,14.07807266]
[1729588681421,20.0,165.14,165.11,14.07807266]
[1729588681709,23.776884,165.13,165.11,14.07807266]
[1729588682500,20.0,165.14,165.11,14.07807266]
[1729588682696,6.0544,165.17,165.11,14.07807266]
[1729588683003,23.776884,165.16,165.13,14.07807266]
[1729588683199,23.776884,165.17,165.13,14.07807266]
[1729588683398,23.776884,165.17,165.11,16.4855]
[1729588683399,6.0528,165.22,165.15,14.07807266]
[1729588683605,15.6601,165.23,165.12,14.07807266]
[1729588683606,15.6601,165.23,165.17,14.07807266]
[1729588683807,30.0,165.18,165.17,14.07807266]
[1729588684205,6.0529,165.21,165.17,14.07807266]
[1729588684518,6.0524,165.23,165.17,14.07807266]
[1729588684692,6.0526,165.22,165.17,14.07807266]
[1729588685414,6.0529,165.21,165.17,14.07807266]
[1729588686302,23.776884,165.24,165.15,14.07807266]
[1729588686502,23.776884,165.18,165.12,14.07807266]
[1729588687396,29.831184,165.18,165.12,14.07807266]
[1729588687617,20.0,165.17,165.11,16.4855]
[1729588687793,20.0,165.17,165.12,14.07807266]
[1729588688304,29.831684,165.16,165.11,16.4855]
[1729588688698,20.0,165.15,165.11,16.4855]
[1729588689313,20.0,165.15,165.1,14.07807266]
[1729588690425,6.0532,165.2,165.12,14.07807266]
[1729588690722,43.776884,165.17,165.12,14.07807266]
[1729588691593,20.0,165.22,165.14,14.07807266]
[1729588691793,6.0533,165.2,165.16,14.07807266]
[1729588692917,6.0532,165.21,165.16,14.07807266]
[1729588693305,20.0,165.18,165.16,14.07807266]
[1729588693623,20.0,165.28,165.17,14.07807266]
[1729588693928,6.0503,165.28,165.21,14.07807266]
[1729588694098,22.666,165.29,165.21,14.07807266]
[1729588694917,6.0516,165.25,165.21,14.07807266]
[1729588695115,20.0,165.28,165.19,14.07807266]
[1729588695313,6.0521,165.24,165.19,14.07807266]
[1729588696510,23.776884,165.24,165.19,14.07807266]
[1729588696718,6.0501,165.29,165.22,14.07807266]
[1729588696917,6.0501,165.29,165.25,14.07807266]
[1729588698309,6.0507,165.27,165.23,29.52537266]
[1729588698821,6.0507,165.27,165.23,15.4473]
[1729588701132,23.776884,165.27,165.23,15.4473]
[1729588701606,23.776884,165.27,165.21,14.07807266]
[1729588701808,23.776884,165.27,165.19,30.31827266]
[1729588702310,23.776884,165.25,165.19,30.31827266]
[1729588702820,29.828384,165.25,165.19,30.31827266]
[1729588706217,6.0518,165.24,165.19,16.2402]
[1729588706412,6.0518,165.24,165.17,14.07807266]
[1729588706611,23.776884,165.25,165.15,35.85017266]
[1729588706810,20.0,165.22,165.11,15.4465]
[1729588707130,6.0551,165.15,165.11,15.4465]
[1729588707309,6.0551,165.15,165.08,14.07807266]
[1729588708229,20.0,165.16,165.1,14.07807266]
[1729588708802,29.831984,165.15,165.08,14.07807266]
[1729588709008,6.0558,165.14,165.08,14.07807266]
[1729588709919,29.831984,165.15,165.08,14.07807266]
[1729588710119,23.776884,165.15,165.08,14.07807266]
[1729588711624,29.832084,165.15,165.08,14.07807266]
[1729588711927,23.776884,165.15,165.08,14.07807266]
[1729588713235,29.831984,165.15,165.08,14.07807266]
[1729588713417,23.776884,165.13,165.08,14.07807266]
[1729588713613,6.0563,165.12,165.02,22.5035]
[1729588713814,6.0563,165.12,165.03,14.07807266]
[1729588714021,6.0567,165.11,165.03,14.07807266]
[1729588714235,23.776884,165.1,165.03,14.07807266]
[1729588714942,6.0567,165.11,165.0,115.30696969]
[1729588714943,23.776884,165.08,165.0,115.30696969]
[1729588715118,6.0595,165.03,165.0,115.30696969]
[1729588715317,43.776884,165.01,165.0,115.30696969]
[1729588715535,73.776884,165.01,165.0,115.30696969]
[1729588716140,43.776884,165.03,165.0,115.30696969]
[1729588716523,43.776884,165.08,165.0,129.38504235]
[1729588716944,43.776884,165.08,165.02,14.07807266]
[1729588717115,12.5166,165.07,165.0,115.30696969]
[1729588717438,23.776884,164.95,164.92,0.6075895]
[1729588717823,23.776884,164.95,164.85,14.07807266]
[1729588718121,6.0634,164.93,164.85,14.07807266]
[1729588718337,6.0634,164.93,164.82,15.4729]
[1729588718338,23.776884,164.95,164.82,15.4729]
[1729588718923,23.876884,164.95,164.79,6.5792]
[1729588719231,23.776884,164.86,164.79,14.07807266]
[1729588719818,6.0643,164.9,164.79,14.07807266]
[1729588720029,23.776884,164.88,164.76,0.08126341]
[1729588720339,23.776884,164.88,164.79,22.6379658]